bitfinex/quotes_ETHUSD_20260109
["timestamp","ask_amount","ask_price","bid_price","bid_amount"]
[1767926892056,3.21221314,3115.1,3114.7,0.001]
[1767926892256,1.64755859,3115.0,3114.7,0.001]
[1767926893170,4.85784313,3115.0,3114.7,0.001]
[1767926893371,1.64755859,3115.0,3114.7,0.001]
[1767926893579,0.73362254,3115.0,3114.7,0.001]
[1767926896800,4.85787886,3115.0,3114.7,0.001]
[1767926897004,1.720941,3114.9,3114.7,0.001]
[1767926897802,4.93134176,3114.9,3114.7,0.001]
[1767926898367,0.91393605,3114.8,3113.9,0.90913432]
[1767926898712,0.91393605,3114.5,3113.9,0.001]
[1767926899284,0.91393605,3114.7,3113.9,0.90913432]
[1767926899685,0.69890943,3114.8,3113.9,0.90913432]
[1767926899871,3.21217901,3115.1,3114.2,0.90813432]
[1767926899872,3.2121849,3115.1,3114.2,0.90813432]
[1767926900969,4.12612095,3115.1,3114.2,0.90813432]
[1767926901810,4.12612095,3115.1,3114.2,0.90613432]
[1767926903002,0.91393605,3115.0,3114.0,0.90813432]
[1767926903191,0.91393605,3114.8,3113.9,0.001]
[1767926904815,0.91393605,3114.6,3113.9,0.001]
[1767926909506,0.91393605,3114.5,3113.9,0.001]
[1767926911304,4.12482023,3114.5,3113.9,0.001]
[1767926913103,0.9983135,3114.4,3113.9,0.001]
[1767926913284,0.51231337,3114.3,3113.8,0.841]
[1767926913603,0.51231337,3114.3,3113.6,0.96057293]
[1767926914105,4.72168436,3114.3,3113.6,0.96057293]
[1767926918486,0.9983135,3114.2,3113.3,0.96057293]
[1767926918818,3.97000204,3113.9,3113.1,0.96057293]
[1767926919106,0.9983135,3114.0,3113.1,0.96057293]
[1767926919271,0.9983135,3114.0,3112.9,0.96057293]
[1767926919470,0.9983135,3114.0,3113.0,0.844]
[1767926919676,0.9983135,3114.0,3113.0,1.80457293]
[1767926920200,0.47216844,3114.1,3113.1,0.96057293]
[1767926920201,4.20972041,3113.9,3113.1,0.96057293]
[1767926920389,0.42097204,3113.8,3113.1,0.96057293]
[1767926921415,0.9983135,3113.7,3113.0,0.002]
[1767926921780,0.9983135,3113.5,3113.0,0.002]
[1767926921980,0.99631351,3113.5,3113.0,0.002]
[1767926922205,6.4238453,3113.4,3113.0,0.002]
[1767926922408,0.74201588,3113.3,3113.0,0.002]
[1767926924128,3.21212899,3113.2,3113.0,0.002]
[1767926925506,0.9983135,3113.1,3112.6,0.002]
[1767926926434,7.42298422,3113.0,3112.6,0.002]
[1767926926636,0.9983135,3112.7,3111.8,0.91829548]
[1767926926800,0.9983135,3112.7,3111.9,0.91829548]
[1767926928000,0.9983135,3112.7,3111.8,0.842]
[1767926928202,1.17237469,3112.7,3111.8,0.842]
[1767926928732,7.42380986,3112.6,3111.8,1.76029421]
[1767926929509,7.42380986,3112.6,3111.7,0.002]
[1767926929510,0.9983135,3112.5,3111.7,0.002]
[1767926930945,0.9983135,3112.4,3111.7,0.002]
[1767926931250,0.9983135,3112.4,3111.7,0.92029297]
[1767926933049,4.21132241,3112.4,3111.7,0.92029297]
[1767926933250,4.95374172,3112.4,3111.7,0.92029297]
[1767926933952,0.9983135,3112.3,3111.7,0.002]
[1767926934424,7.16843713,3112.4,3111.1,0.91829057]
[1767926934425,0.9983135,3112.2,3111.1,0.91829057]
[1767926934614,0.9983135,3112.2,3111.2,0.91829057]
[1767926935018,3.21326435,3112.1,3111.2,0.91829057]
[1767926935318,3.21326435,3112.1,3111.3,0.91828999]
[1767926936020,4.21157785,3112.1,3111.3,0.91828999]
[1767926937158,0.9983135,3112.0,3111.3,0.91828999]
[1767926937331,0.9963135,3112.0,3111.2,4.84488099]
[1767926937533,0.9963135,3112.0,3111.0,6.18608592]
[1767926937534,0.9983135,3111.9,3111.0,0.92028885]
[1767926938347,0.9983135,3111.6,3110.4,0.91428828]
[1767926938543,0.9983135,3111.6,3111.1,0.002]
[1767926938544,0.9983135,3111.5,3111.1,0.002]
[1767926939324,2.97168854,3111.6,3110.1,1.75728773]
[1767926939325,0.9983135,3111.3,3110.1,1.75728773]
[1767926939528,0.9983135,3111.1,3110.2,0.91428773]
[1767926940041,0.9983135,3111.1,3110.1,4.22624584]
[1767926940448,0.9983135,3111.1,3110.2,0.91428718]
[1767926940956,0.9983135,3111.1,3110.1,0.17592877]
[1767926941269,0.9983135,3111.1,3110.2,2.97168854]
[1767926941556,0.9983135,3111.1,3110.5,2.97168854]
[1767926942158,0.9983135,3111.1,3110.5,3.81468854]
[1767926942760,0.99586564,3111.9,3110.5,3.81468854]
[1767926943148,0.99586564,3111.9,3110.5,0.843]
[1767926943349,0.99586564,3111.6,3110.6,3.68762293]
[1767926945965,0.99586564,3111.6,3110.7,2.97168854]
[1767926946164,3.21367741,3111.7,3110.8,0.9142835]
[1767926946760,3.3974713,3111.8,3110.8,0.9142835]
[1767926947551,4.35124243,3111.8,3110.8,0.9142835]
[1767926947742,4.35124243,3111.8,3110.9,0.91428251]
[1767926948671,0.95377113,3112.0,3111.0,0.91428202]
[1767926948967,3.21305786,3112.3,3111.2,0.91428202]
[1767926948968,0.95377113,3112.2,3111.2,0.91428202]
[1767926950169,0.95377113,3112.0,3110.8,0.7573595]
[1767926950368,0.95377113,3112.0,3110.7,0.843]
[1767926950568,0.95377113,3111.8,3110.7,1.75728106]
[1767926951962,0.95377113,3111.8,3110.7,0.91428106]
[1767926952340,0.95377113,3111.8,3110.7,4.12898992]
[1767926952673,0.95377113,3111.8,3110.8,0.49719899]
[1767926953847,0.001,3111.9,3111.4,0.91427965]
[1767926956868,0.95477113,3111.9,3111.1,0.843]
[1767926957070,0.95477113,3111.9,3110.7,3.21469381]
[1767926957238,0.95477113,3111.9,3110.7,4.12897167]
[1767926957443,0.95377113,3111.7,3110.8,0.49719717]
[1767926957642,0.95377113,3111.7,3110.8,1.41147503]
[1767926958445,0.95377113,3111.7,3110.8,0.91427786]
[1767926958645,0.95377113,3111.7,3110.9,3.89238602]
[1767926958847,4.16746792,3111.7,3110.9,3.89238602]
[1767926960372,4.16746792,3111.7,3110.9,0.91427742]
[1767926961585,0.95377113,3111.6,3110.9,0.91427742]
[1767926962174,0.95377113,3111.6,3110.7,3.89238433]
[1767926962369,0.95377113,3111.6,3110.7,7.9021008]
[1767926962570,0.95377113,3111.6,3110.8,0.91427573]
[1767926962792,0.001,3111.4,3110.8,0.91427573]
[1767926963092,0.001,3111.4,3111.0,0.91427573]
[1767926963681,0.001,3111.4,3110.9,2.9781086]
[1767926963886,0.001,3111.4,3110.8,0.91427531]
[1767926964058,0.001,3111.4,3110.8,1.78878993]
[1767926964489,0.001,3111.4,3110.9,0.91427491]
[1767926966588,0.001,3111.4,3110.8,0.87451462]
[1767926966589,0.95477113,3111.4,3110.8,0.87451462]
[1767926966770,0.95477113,3111.4,3110.6,0.843]
[1767926967283,0.95477113,3111.4,3110.6,1.75727371]
[1767926967484,0.95477113,3111.4,3110.7,0.91427371]
[1767926968158,0.001,3111.4,3110.7,0.91427371]
[1767926970170,0.95477113,3111.4,3110.7,0.91427371]
[1767926971868,0.95377113,3111.3,3110.3,3.89238079]
[1767926972067,0.95377113,3111.3,3110.4,0.843]
[1767926972468,0.95377113,3111.3,3110.4,1.75727182]
[1767926973600,0.95377113,3111.3,3110.4,4.97226682]
[1767926973769,0.99941283,3111.2,3110.4,1.75727182]
[1767926974471,0.99941283,3111.2,3110.4,4.97227604]
[1767926974666,0.99941283,3111.2,3110.5,0.83396227]
[1767926975406,0.99941283,3111.2,3110.5,1.74823264]
[1767926976008,3.214099,3111.3,3110.6,0.91427037]
[1767926977818,4.21443983,3111.4,3110.6,0.91427037]
[1767926978778,0.99941283,3111.3,3110.6,0.91427037]
[1767926980379,4.21354614,3111.3,3110.6,0.91427037]
[1767926980698,0.99941283,3111.2,3110.4,4.97227288]
[1767926981382,0.001,3111.4,3110.7,0.91426833]
[1767926982100,1.00041283,3111.4,3110.7,0.91426833]
[1767926982613,1.00041283,3111.4,3110.7,7.10698949]
[1767926983515,1.00041283,3111.4,3110.7,4.12888089]
[1767926984819,1.00041283,3111.4,3110.7,0.91426833]
[1767926986329,0.001,3111.1,3110.7,0.91426833]
[1767926986529,0.001,3111.1,3110.5,7.10726786]
[1767926986693,0.001,3111.1,3110.6,0.79502679]
[1767926987111,0.001,3111.1,3110.6,4.00981797]
[1767926990127,1.00041283,3111.1,3110.3,4.2816122]
[1767926990319,1.00041283,3111.1,3110.5,0.843]
[1767926990695,1.00041283,3111.1,3110.1,0.91426552]
[1767926990696,0.99941283,3110.8,3110.1,0.91426552]
[1767926991012,4.21404053,3110.8,3110.2,0.843]
[1767926991202,0.99941283,3110.8,3110.2,0.843]
[1767926992730,0.99941283,3110.7,3110.2,0.843]
[1767926994840,0.99941283,3110.7,3110.2,4.05820109]
[1767926994999,0.99941283,3110.7,3110.2,3.21520109]
[1767926995201,0.99941283,3110.7,3110.0,3.8211086]
[1767926995416,0.001,3111.1,3110.7,0.91426408]
[1767926995610,0.001,3111.1,3110.7,1.30350135]
[1767926995838,1.00041283,3111.1,3110.3,0.91426408]
[1767926996031,1.00041283,3111.1,3110.4,0.843]
[1767926997033,0.99941283,3111.0,3110.3,0.843]
[1767926998859,0.001,3110.5,3110.3,0.843]
[1767926999665,0.001,3110.5,3110.2,3.8211086]
[1767926999828,0.001,3110.5,3110.2,4.23406413]
[1767927000030,0.001,3110.5,3110.2,8.36354497]
[1767927000859,0.001,3110.5,3110.2,5.14832712]
[1767927001561,0.001,3110.5,3110.2,1.25595553]
[1767927001761,0.001,3110.5,3110.2,0.843]
[1767927002137,0.001,3110.5,3110.2,1.7572622]
[1767927002334,0.001,3110.5,3110.2,4.972481]
[1767927003466,0.001,3110.5,3110.2,1.7572622]
[1767927004572,0.001,3110.5,3110.2,4.97247915]
[1767927005063,0.001,3110.5,3110.2,1.7572622]
[1767927006572,0.001,3110.5,3110.2,0.843]
[1767927006971,0.001,3110.5,3110.1,2.9781086]
[1767927007175,0.001,3110.5,3110.2,0.843]
[1767927010447,0.001,3110.5,3110.0,3.89236955]
[1767927010647,0.001,3110.5,3110.1,0.843]
[1767927010866,0.98637271,3110.5,3110.1,0.843]
[1767927011259,0.001,3110.5,3110.1,0.843]
[1767927011460,0.001,3110.5,3110.2,0.4731802]
[1767927011780,0.001,3110.5,3110.1,1.75369345]
[1767927011979,0.98637271,3110.5,3110.1,0.843]
[1767927012669,0.98637271,3110.5,3109.9,3.8231086]
[1767927013885,0.98637271,3110.5,3109.9,0.002]
[1767927014286,0.98637271,3110.5,3109.9,0.845]
[1767927015457,0.98637271,3110.5,3110.2,2.9781086]
[1767927015786,0.98537271,3110.9,3110.2,2.9781086]
[1767927016080,3.21444023,3111.0,3110.3,0.91069345]
[1767927016453,0.98637271,3111.1,3110.4,3.88880205]
[1767927016679,0.98637271,3111.1,3110.4,4.27768226]
[1767927016856,0.001,3111.1,3110.5,0.91069345]
[1767927020789,0.001,3111.1,3110.6,0.91069345]
[1767927021378,0.98637271,3111.1,3110.4,1.23188021]
[1767927021574,0.98637271,3111.1,3110.4,2.14257366]
[1767927021778,0.001,3111.1,3110.5,0.91069345]
[1767927021980,0.001,3110.8,3110.5,0.91069345]
[1767927023202,0.001,3111.1,3110.5,0.91069345]
[1767927025599,0.001,3111.1,3110.6,0.91069345]
[1767927025966,0.001,3111.1,3110.6,4.12550049]
[1767927026175,0.001,3111.1,3110.7,0.41255005]
[1767927026734,0.001,3111.1,3110.7,1.3232435]
[1767927028400,0.001,3111.1,3110.5,4.12559766]
[1767927028702,0.001,3111.1,3110.6,0.91069345]
[1767927031779,0.001,3111.1,3110.6,4.12548289]
[1767927032201,0.98637271,3111.1,3110.4,0.843]
[1767927032675,0.98637271,3111.1,3110.4,1.01836935]
[1767927033409,0.98230312,3111.0,3110.3,0.843]
[1767927033613,2.98004665,3111.1,3110.3,0.843]
[1767927033614,0.001,3110.8,3110.3,0.843]
[1767927033813,0.001,3110.8,3110.0,4.16355087]
[1767927033814,0.98330312,3110.8,3110.0,4.16355087]
[1767927034116,0.98330312,3110.8,3110.1,0.843]
[1767927034814,0.98230312,3110.7,3109.9,0.002]
[1767927035301,0.98230312,3110.6,3109.9,0.845]
[1767927036319,0.98230312,3110.6,3109.9,0.002]
[1767927037603,0.98230312,3110.5,3109.9,0.002]
[1767927040244,4.19727026,3110.5,3109.9,0.002]
[1767927040426,0.98230312,3110.4,3109.9,0.002]
[1767927040632,0.98230312,3110.3,3108.6,3.85]
[1767927040829,0.98230312,3110.2,3109.1,0.94818284]
[1767927041303,0.98230312,3110.0,3109.0,0.843]
[1767927041936,0.98230312,3109.8,3109.0,0.843]
[1767927042131,0.98030313,3109.8,3109.0,0.843]
[1767927043334,0.98030313,3109.8,3108.9,1.79118284]
[1767927043735,0.98030313,3109.8,3108.9,0.843]
[1767927043936,0.98230312,3109.7,3108.9,0.843]
[1767927044318,0.98230312,3109.7,3108.9,4.05956697]
[1767927044505,3.95677173,3109.8,3108.5,3.21697801]
[1767927044506,0.98230312,3109.4,3108.5,3.21697801]
[1767927044710,0.98230312,3109.4,3108.4,5.00823662]
[1767927044934,0.98230312,3109.4,3108.5,0.50082366]
[1767927045325,0.98230312,3109.4,3108.5,0.49882366]
[1767927045529,0.98230312,3109.4,3108.4,5.00823662]
[1767927045530,0.98230312,3109.4,3108.9,0.002]
[1767927046330,0.98230312,3109.1,3108.9,0.002]
[1767927047445,0.98230312,3109.1,3107.7,3.21779346]
[1767927047631,0.98230312,3109.1,3108.1,0.843]
[1767927048141,0.0320287,3109.7,3108.5,3.92722949]
[1767927048142,0.98230312,3109.6,3108.5,3.92722949]
[1767927048349,0.98230312,3109.4,3108.6,3.21688219]
[1767927049249,0.98230312,3109.4,3108.3,3.92722949]
[1767927049250,0.98230312,3109.3,3108.3,3.21719266]
[1767927051358,0.98230312,3109.2,3108.2,3.21729618]
[1767927051725,0.98230312,3109.2,3108.3,0.94818284]
[1767927052656,0.98230312,3109.2,3108.4,0.843]
[1767927052840,0.98230312,3109.0,3108.1,0.94818284]
[1767927053653,0.98230312,3108.9,3108.1,0.94818284]
[1767927054156,0.98230312,3108.9,3107.9,0.94818284]
[1767927054331,0.98230312,3108.9,3108.1,0.843]
[1767927054718,0.98230312,3108.9,3108.1,4.06039514]
[1767927055423,0.98230312,3108.8,3108.1,0.843]
[1767927055816,0.98230312,3108.8,3108.1,5.00854051]
[1767927056043,0.98230312,3109.0,3108.2,0.94818284]
[1767927056238,0.98230312,3109.2,3108.2,0.94818284]
[1767927056824,0.98230312,3109.1,3108.1,0.843]
[1767927057031,0.98230312,3108.9,3108.1,0.843]
[1767927057924,0.98230312,3108.8,3108.1,0.843]
[1767927058458,0.98230312,3108.8,3107.9,4.16577424]
[1767927058756,0.98230312,3108.8,3108.0,3.21749412]
[1767927059125,0.98230312,3108.8,3107.9,5.00976442]
[1767927059724,1.40219301,3108.7,3107.9,1.79218284]
[1767927060141,0.98230312,3108.6,3107.9,0.844]
[1767927060354,0.98230312,3108.6,3107.7,0.94818284]
[1767927060539,6.85348059,3108.7,3107.7,1.79218284]
[1767927060540,0.98230312,3108.4,3107.7,1.79218284]
[1767927060860,0.98230312,3108.4,3107.7,5.0099848]
[1767927061550,2.97904665,3108.9,3107.7,5.0099848]
[1767927061551,0.98230312,3108.9,3108.0,0.94818284]
[1767927061922,0.001,3109.0,3108.0,0.94818284]
[1767927061923,0.001,3109.0,3108.1,0.94818284]
[1767927062219,0.001,3109.0,3108.3,0.94818284]
[1767927062432,0.001,3109.0,3108.2,0.39272295]
[1767927062433,0.98330312,3109.0,3108.2,0.39272295]
[1767927062638,0.98330312,3109.0,3108.2,2.15392382]
[1767927062850,0.001,3109.0,3108.4,0.91720087]
[1767927063053,0.001,3109.0,3108.2,5.37118096]
[1767927063228,0.001,3109.0,3108.3,1.45431897]
[1767927063739,0.001,3109.0,3108.3,4.67147709]
[1767927064056,0.001,3109.0,3108.4,0.91720087]
[1767927064458,0.99801911,3109.0,3108.3,0.5371181]
[1767927065134,0.99801911,3109.0,3108.3,0.91720087]
[1767927065349,0.001,3109.0,3108.4,0.91720087]
[1767927065750,0.001,3109.0,3108.4,4.13424709]
[1767927066331,0.001,3109.0,3108.4,0.91720087]
[1767927067553,0.001,3109.0,3108.4,4.13427149]
[1767927067759,0.001,3109.0,3108.4,4.99310037]
[1767927067939,0.001,3109.0,3108.5,0.95383752]
[1767927069068,0.98776651,3109.6,3108.7,0.95383752]
[1767927070142,4.20343174,3109.8,3108.8,0.95383752]
[1767927070354,0.1930287,3110.8,3108.7,0.844]
[1767927070355,0.98776651,3109.7,3108.9,3.1588304]
[1767927070956,0.98776651,3109.7,3108.9,0.17978375]
[1767927071158,0.98776651,3109.7,3108.4,0.85882888]
[1767927071159,0.98776651,3109.6,3108.4,0.85882888]
[1767927071362,0.98776651,3109.6,3108.3,3.21709931]
[1767927071660,0.98776651,3109.6,3108.2,4.45394469]
[1767927071829,10.25455367,3109.7,3108.2,1.23672295]
[1767927071830,0.98776651,3109.3,3108.2,1.23672295]
[1767927072033,0.98776651,3109.3,3108.2,4.45401519]
[1767927072233,0.98776651,3109.2,3108.3,3.21718722]
[1767927072656,0.98776651,3109.1,3108.3,3.21718722]
[1767927073962,0.98776651,3109.1,3108.2,4.45400885]
[1767927075361,0.98776651,3109.0,3108.2,4.45400885]
[1767927075664,3.21636755,3109.1,3108.3,1.79783752]
[1767927075865,0.98776651,3109.0,3108.3,0.844]
[1767927076454,0.98776651,3109.0,3108.3,1.79783752]
[1767927078948,0.98776651,3109.0,3108.3,0.95383752]
[1767927079340,4.20424041,3109.0,3108.3,0.95383752]
[1767927079548,0.98776651,3108.9,3108.2,0.844]
[1767927079748,0.98776651,3108.9,3108.2,1.34551974]
[1767927080678,0.001,3108.7,3108.2,1.34551974]
[1767927080874,0.001,3108.7,3107.7,0.95383752]
[1767927080875,0.98776651,3108.6,3107.7,0.95383752]
[1767927081039,0.98776651,3108.6,3107.8,1.79783752]
[1767927081373,0.98776651,3108.5,3107.8,1.79783752]
[1767927082243,0.98876651,3108.7,3107.9,3.93731447]
[1767927082451,0.001,3108.7,3108.2,0.95383752]
[1767927083151,0.001,3108.7,3108.3,0.95383752]
[1767927084345,0.001,3108.7,3108.4,0.95383752]
[1767927091592,0.001,3108.7,3108.4,4.17090482]
[1767927092609,0.91563688,3109.4,3108.6,3.94649392]
[1767927092808,0.91563688,3109.4,3108.7,0.96301697]
[1767927094899,0.91563688,3109.4,3108.7,4.89608949]
[1767927095228,0.91563688,3109.5,3108.7,1.6793498]
[1767927095587,4.13160781,3109.5,3108.7,1.6793498]
[1767927095829,0.91563688,3109.5,3108.7,4.89612783]
[1767927097157,0.91563688,3109.5,3108.8,0.96301697]
[1767927097474,0.91563688,3109.5,3108.8,1.75097745]
[1767927098161,4.13160888,3109.5,3108.8,1.75097745]
[1767927098306,4.13160888,3109.5,3108.7,0.71633283]
[1767927098509,0.91563688,3109.4,3108.7,0.71633283]
[1767927099240,0.91563688,3109.4,3108.7,3.93307755]
[1767927101023,0.91563688,3109.4,3108.7,0.71633283]
[1767927101239,0.91563688,3109.3,3108.7,0.71633283]
[1767927101710,4.13172408,3109.4,3108.7,0.71633283]
[1767927102051,0.844,3110.0,3108.7,0.71633283]
[1767927102052,0.91563688,3109.8,3108.9,0.96301697]
[1767927102354,0.91563688,3109.7,3108.9,0.96301697]
[1767927102847,0.91563688,3109.7,3108.8,0.46628268]
[1767927103615,0.91563688,3109.5,3108.8,0.46628268]
[1767927104129,0.91563688,3109.5,3108.7,1.56033283]
[1767927104518,0.91563688,3109.5,3108.7,2.5233498]
[1767927104920,0.001,3109.2,3108.7,2.5233498]
[1767927106649,0.001,3109.2,3108.7,1.6793498]
[1767927107547,0.001,3109.2,3108.7,0.71633283]
[1767927107750,0.91663688,3109.2,3108.6,0.844]
[1767927108348,0.91663688,3109.2,3108.5,0.844]
[1767927108931,0.91663688,3109.2,3108.5,7.04445644]
[1767927109164,0.91663688,3109.2,3108.5,8.00747341]
[1767927109349,0.001,3109.2,3108.6,1.76376431]
[1767927110766,0.001,3109.2,3108.7,0.96301697]
[1767927111156,0.001,3109.2,3108.8,0.96301697]
[1767927111556,0.91563688,3110.0,3109.2,0.96301697]
[1767927111869,2.35748133,3110.0,3109.2,0.96301697]
[1767927112272,0.91563688,3109.9,3109.2,0.96301697]
[1767927113242,4.13121146,3109.9,3109.2,0.96301697]
[1767927114271,0.91563688,3109.8,3109.0,0.96301697]
[1767927114844,0.91563688,3109.7,3108.8,0.96301697]
[1767927115079,0.91563688,3109.7,3108.9,1.23864939]
[1767927115279,0.91563688,3109.7,3108.9,2.20166636]
[1767927115783,0.91563688,3109.7,3109.0,0.96301697]
[1767927116491,4.13138685,3109.7,3109.0,0.96301697]
[1767927116697,0.91563688,3109.6,3108.9,1.23864939]
[1767927116876,0.91563688,3109.6,3109.0,0.4455318]
[1767927117069,0.91563688,3109.6,3109.1,0.002]
[1767927117394,0.001,3109.4,3109.1,0.002]
[1767927120567,0.001,3109.4,3109.1,0.96501697]
[1767927122164,0.001,3109.4,3109.2,0.96301697]
[1767927122364,8.21963688,3110.2,3109.4,0.96301697]
[1767927122618,0.91563688,3110.2,3109.5,2.98347695]
[1767927123123,0.91563688,3110.2,3109.4,0.96301697]
[1767927123635,0.9329562,3110.6,3109.8,0.90521249]
[1767927123853,0.9329562,3110.5,3109.8,0.90521249]
[1767927124137,0.9329562,3110.4,3109.7,1.74921249]
[1767927124645,0.9329562,3110.4,3109.1,0.002]
[1767927124646,0.9329562,3109.8,3109.1,0.002]
[1767927125337,0.9329562,3109.8,3109.1,4.12350484]
[1767927125513,0.9329562,3109.8,3109.2,0.49675048]
[1767927125842,0.9329562,3110.0,3109.3,0.90521249]
[1767927127403,4.16486603,3110.2,3109.3,0.90521249]
[1767927127609,0.94963872,3110.4,3109.5,3.89572535]
[1767927128117,1.98593373,3110.3,3109.5,0.9122484]
[1767927128621,1.98593373,3110.3,3109.5,1.7562484]
[1767927128822,0.94963872,3110.3,3109.5,1.7562484]
[1767927130155,0.001,3109.7,3109.6,0.9122484]
[1767927130661,0.94963872,3110.4,3109.6,0.9122484]
[1767927130867,0.94963872,3110.3,3109.6,0.9122484]
[1767927131369,0.94963872,3110.3,3109.5,0.844]
[1767927133170,0.94963872,3110.2,3109.5,0.844]
[1767927136479,4.1648789,3110.2,3109.5,0.844]
[1767927136649,4.1648789,3110.2,3109.4,0.9122484]
[1767927136852,0.94963872,3110.1,3109.5,0.843]
[1767927137470,0.94963872,3110.1,3109.3,0.843]
[1767927137882,0.94963872,3110.1,3109.3,1.68837706]
[1767927138486,0.94963872,3110.1,3109.4,0.9122484]
[1767927140072,0.94963872,3110.0,3109.2,2.25199888]
[1767927140472,0.94963872,3110.0,3109.3,0.9122484]
[1767927141402,4.16496317,3110.2,3109.4,0.9122484]
[1767927142174,0.001,3109.8,3109.4,0.9122484]
[1767927142556,0.001,3109.8,3109.4,4.12827104]
[1767927143289,0.001,3109.8,3109.4,0.9122484]
[1767927143469,0.001,3109.8,3109.5,0.41283683]
[1767927148196,0.001,3109.8,3109.5,4.54100564]
[1767927149171,6.42964442,3110.6,3109.8,0.9122484]
[1767927149172,4.16446093,3110.6,3109.8,0.9122484]
[1767927149376,0.94963872,3110.5,3110.0,2.98130511]
[1767927149684,0.001,3110.8,3110.1,1.29467891]
[1767927150013,0.001,3110.8,3110.2,0.9122484]
[1767927150169,0.001,3110.8,3110.1,0.38243051]
[1767927150170,4.16525521,3110.8,3110.1,0.38243051]
[1767927150375,0.94963872,3110.7,3110.1,0.843]
[1767927151907,0.94963872,3110.6,3110.1,0.843]
[1767927152489,4.16525909,3110.8,3110.1,0.843]
[1767927152687,0.95063872,3110.8,3110.1,1.77340302]
[1767927153076,4.16525859,3110.8,3110.1,1.77340302]
[1767927153409,4.16525859,3110.8,3110.1,2.27229559]
[1767927153598,4.16525859,3110.8,3110.1,1.77340302]
[1767927153798,0.97718138,3110.7,3110.1,0.843]
[1767927154004,0.97718138,3110.6,3110.1,0.843]
[1767927154180,0.97818138,3110.5,3110.1,0.843]
[1767927156618,0.001,3110.5,3110.1,0.843]
[1767927156792,0.001,3110.5,3110.2,0.1773403]
[1767927157917,0.001,3110.5,3110.0,0.843]
[1767927161603,0.97818138,3110.5,3110.0,0.843]
[1767927163816,0.97818138,3110.5,3109.7,6.19901511]
[1767927163993,0.97818138,3110.5,3109.7,0.002]
[1767927163994,0.97718138,3110.4,3109.7,0.002]
[1767927167125,0.97718138,3110.1,3109.7,0.002]
[1767927167492,0.001,3110.2,3109.7,0.002]
[1767927171015,0.92818138,3110.3,3109.7,0.002]
[1767927175926,0.97818138,3110.5,3109.7,0.93240302]
[1767927176131,0.97818138,3110.5,3109.7,1.43152713]
[1767927177046,4.19313309,3110.5,3109.7,1.43152713]
[1767927177547,3.21595171,3110.5,3109.8,0.93040302]
[1767927178940,3.21595171,3110.5,3110.0,0.002]
[1767927179146,0.97718138,3110.4,3110.0,0.002]
[1767927181516,4.19222493,3110.4,3110.0,0.002]
[1767927184204,0.93249385,3110.3,3110.0,0.002]
[1767927184405,0.93249385,3110.0,3109.4,0.002]
[1767927184602,0.93249385,3110.0,3109.1,0.002]
[1767927184603,0.93249385,3109.5,3109.1,0.002]
[1767927185406,0.93249385,3109.9,3109.1,0.96609912]
[1767927185621,0.93249385,3109.9,3109.1,2.20383954]
[1767927186510,0.93249385,3109.9,3109.2,0.96409912]
[1767927189408,4.14804887,3109.9,3109.1,1.23974042]
[1767927189629,1.24520666,3109.8,3109.2,0.22376657]
[1767927189823,0.97285789,3109.8,3109.2,0.22376657]
[1767927190154,0.97285789,3109.8,3109.2,0.843]
[1767927190356,4.18818858,3110.1,3109.2,1.84092526]
[1767927190518,4.46067313,3110.0,3109.2,1.84092526]
[1767927190717,0.2723168,3109.9,3109.3,0.99792526]
[1767927190918,7.40386749,3110.0,3109.3,0.99792526]
[1767927191270,0.27232108,3109.9,3109.3,0.99792526]
[1767927191435,0.001,3109.8,3109.3,0.99792526]
[1767927197165,0.001,3109.8,3109.1,0.002]
[1767927197324,0.97385789,3109.8,3109.1,0.002]
[1767927198368,0.97285789,3109.6,3109.1,0.002]
[1767927198567,1.71339254,3109.6,3109.1,0.002]
[1767927199866,3.21595111,3109.5,3109.1,0.002]
[1767927204353,3.21595111,3109.5,3108.8,0.99992526]
[1767927204671,3.21595111,3109.5,3109.0,0.002]
[1767927207778,4.93027928,3109.6,3109.0,0.002]
[1767927208559,0.74153465,3109.6,3109.0,0.99992526]
[1767927208755,3.95743936,3109.6,3109.0,0.99992526]
[1767927210890,1.76412522,3109.5,3109.0,0.002]
[1767927211887,7.9624702,3109.5,3109.0,0.002]
[1767927212194,3.95523397,3109.3,3108.8,0.002]
[1767927213981,7.17148589,3109.3,3108.8,0.002]
[1767927216271,10.38773781,3109.3,3108.8,0.002]
[1767927216482,1.03877378,3109.2,3108.8,0.002]
[1767927216695,1.03877378,3109.2,3108.6,0.94121528]
[1767927217420,0.9922351,3108.4,3107.1,1e-08]
[1767927217602,2.98237608,3107.5,3107.1,1e-08]
[1767927217803,2.98237608,3107.5,3106.4,0.0541018]
[1767927217996,4.81861118,3107.7,3106.5,0.30364779]
[1767927218197,4.81861118,3107.7,3106.4,3.03647788]
[1767927218501,3.21791736,3107.6,3106.4,6.25562606]
[1767927218898,4.21015246,3107.6,3106.4,6.25562606]
[1767927219522,0.844,3107.8,3106.8,2.98237608]
[1767927219725,3.97461118,3107.7,3106.6,0.94321528]
[1767927219924,3.97461118,3107.7,3106.8,0.94321528]
[1767927220222,6.43459236,3108.2,3106.8,0.94321528]
[1767927220223,4.06129618,3108.2,3107.2,0.94321528]
[1767927220519,2.98237608,3108.1,3107.2,0.94321528]
[1767927221023,3.97461118,3108.1,3107.2,0.94321528]
[1767927222619,7.19206247,3108.1,3107.2,0.94321528]
[1767927222918,7.19206247,3108.1,3107.3,0.94321528]
[1767927223521,2.98237608,3108.1,3107.3,0.94321528]
[1767927223931,6.19979952,3108.1,3107.3,0.94321528]
[1767927224497,0.9922351,3108.2,3107.3,0.94321528]
[1767927224829,0.9922351,3108.4,3107.5,0.94321528]
[1767927225003,6.19936176,3108.5,3107.6,0.94321528]
[1767927225513,0.9922351,3108.8,3107.8,0.94321528]
[1767927225713,3.21657745,3108.9,3107.9,0.94321528]
[1767927225914,3.93569631,3108.9,3107.9,0.94321528]
[1767927226119,7.15227376,3108.9,3107.9,0.94321528]
[1767927226319,10.13464984,3108.9,3107.9,0.94321528]
[1767927228426,6.91807239,3108.9,3107.9,0.94321528]
[1767927228626,6.91907239,3108.9,3107.9,4.16082112]
[1767927228834,6.91907239,3108.9,3108.0,0.94321528]
[1767927229521,10.13564984,3108.9,3108.0,0.94321528]
[1767927230431,7.15327376,3108.9,3108.0,0.94321528]
[1767927230632,0.72011886,3108.9,3108.1,0.94321528]